fUSD/lending_fUSD_20250522
["ID","MTS","AMOUNT","RATE_DAILY","PERIOD"]
[361948115,1747905048750,-1207.87,0.00032876,5]
[361948117,1747905048759,-420.0,0.00032876,5]
[361948119,1747905048768,-420.0,0.00032876,5]
[361948121,1747905048778,-420.0,0.00032876,5]
[361948123,1747905048788,-1024.14,0.00032876,5]
[361948125,1747905048797,-977.17,0.00032876,5]
[361948127,1747905048806,-420.0,0.00032876,5]
[361948129,1747905048816,-1932.8,0.00032876,5]
[361948131,1747905048826,-1676.96,0.00032876,5]
[361948133,1747905048835,-420.0,0.00032876,5]
[361948135,1747905048845,-420.0,0.00032876,5]
[361948137,1747905048856,-828.47,0.00032876,5]
[361948139,1747905048866,-420.0,0.00032876,5]
[361948141,1747905048875,-420.0,0.00032876,5]
[361948143,1747905048884,-826.75,0.00032876,5]
[361948145,1747905048894,-1155.25,0.00032876,5]
[361948147,1747905048905,-420.0,0.00032876,5]
[361948149,1747905048914,-420.0,0.00032876,5]
[361948151,1747905048924,-1430.76,0.00032876,5]
[361948152,1747905048933,-420.0,0.00032876,5]
[361948155,1747905048943,-420.0,0.00032876,5]
[361948156,1747905048953,-420.0,0.00032876,5]
[361948158,1747905048962,-420.0,0.00032876,5]
[361948160,1747905048972,-420.0,0.00032876,5]
[361948162,1747905048981,-420.0,0.00032876,5]
[361948164,1747905048991,-974.55,0.00032876,5]
[361948166,1747905049000,-420.0,0.00032876,5]
[361948168,1747905049010,-420.0,0.00032876,5]
[361948170,1747905049021,-1017.29,0.00032876,5]
[361948172,1747905049030,-779.35,0.00032876,5]
[361948174,1747905049039,-468.52,0.00032876,5]
[361948176,1747905049050,-500.0,0.00032876,30]
[361948178,1747905049059,-420.0,0.00032876,5]
[361948180,1747905049069,-562.92,0.00032876,5]
[361948182,1747905049078,-860.88,0.00032876,5]
[361948184,1747905049088,-420.0,0.00032876,5]
[361948186,1747905049098,-979.39,0.00032876,5]
[361948188,1747905049108,-1166.1,0.00032876,5]
[361948190,1747905049118,-420.0,0.00032876,5]
[361948192,1747905049127,-2472.18,0.00032876,5]
[361948194,1747905049136,-420.0,0.00032876,5]
[361948196,1747905049146,-2809.1,0.00032876,5]
[361948198,1747905049155,-666.8,0.00032876,5]
[361948200,1747905049165,-1102.92,0.00032876,5]
[361948202,1747905049177,-1273.66,0.00032876,5]
[361948204,1747905049187,-472.96,0.00032876,5]
[361948206,1747905049197,-420.0,0.00032876,5]
[361948208,1747905049207,-497.55,0.00032876,5]
[361948210,1747905049216,-943.26,0.00032876,5]
[361948212,1747905049226,-420.0,0.00032876,5]
[361948214,1747905049235,-881.15,0.00032876,5]
[361948216,1747905049246,-420.0,0.00032876,5]
[361948218,1747905049255,-544.28,0.00032876,5]
[361948220,1747905049265,-420.0,0.00032876,5]
[361948222,1747905049275,-566.44,0.00032876,5]
[361948223,1747905049286,-462.49,0.00032876,5]
[361948225,1747905049296,-500.1,0.00032876,5]
[361948227,1747905049306,-420.0,0.00032876,5]
[361948229,1747905049316,-420.0,0.00032876,5]
[361948231,1747905049326,-420.0,0.00032876,5]
[361948233,1747905049338,-420.0,0.00032876,5]
[361948235,1747905049348,-420.0,0.00032876,5]
[361948237,1747905049358,-703.56,0.00032876,5]
[361948239,1747905049369,-918.01,0.00032876,5]
[361948241,1747905049378,-420.0,0.00032876,5]
[361948243,1747905049389,-723.91,0.00032876,5]
[361948245,1747905049399,-420.0,0.00032876,5]
[361948247,1747905049408,-500.0,0.00032876,5]
[361948249,1747905049419,-1051.47,0.00032876,5]
[361948251,1747905049429,-555.46,0.00032876,5]
[361948253,1747905049439,-420.0,0.00032876,5]
[361948255,1747905049463,-420.0,0.00032876,5]
[361948257,1747905049473,-606.36,0.00032876,5]
[361948259,1747905049483,-164.83828112,0.00032876,5]
[361948261,1747905049493,-420.0,0.00032876,5]
[361948263,1747905049503,-497.23,0.00032876,5]
[361948265,1747905049513,-420.0,0.00032876,5]
[361948267,1747905049524,-461.56,0.00032876,5]
[361948269,1747905049534,-992.63,0.00032876,5]
[361948271,1747905049544,-420.0,0.00032876,5]
[361948273,1747905049554,-420.0,0.00032876,5]
[361948275,1747905049564,-420.0,0.00032876,5]
[361948277,1747905049574,-1076.32,0.00032876,5]
[361948279,1747905049584,-1023.16,0.00032876,5]
[361948281,1747905049594,-596.13,0.00032876,5]
[361948283,1747905049604,-420.0,0.00032876,5]
[361948285,1747905049615,-632.6,0.00032876,5]
[361948287,1747905049626,-535.58,0.00032876,5]
[361948289,1747905049635,-420.0,0.00032876,5]
[361948291,1747905049645,-420.0,0.00032876,5]
[361948293,1747905049655,-420.0,0.00032876,5]
[361948294,1747905049665,-1539.55,0.00032876,5]
[361948297,1747905049676,-420.0,0.00032876,5]
[361948299,1747905049685,-420.0,0.00032876,5]
[361948301,1747905049696,-1026.75,0.00032876,5]
[361948303,1747905049707,-739.7,0.00032876,5]
[361948305,1747905049718,-425.18,0.00032876,5]
[361948307,1747905049728,-1983.98,0.00032876,5]
[361948309,1747905049738,-420.0,0.00032876,5]
[361948311,1747905049748,-420.0,0.00032876,5]
[361948312,1747905049757,-420.0,0.00032876,5]
[361948314,1747905049767,-420.0,0.00032876,5]
[361948316,1747905049777,-517.88,0.00032876,5]
[361948318,1747905049786,-433.15,0.00032876,5]
[361948320,1747905049796,-420.0,0.00032876,5]
[361948322,1747905049805,-460.0,0.00032876,5]
[361948324,1747905049814,-458.71,0.00032876,5]
[361948326,1747905049824,-420.0,0.00032876,5]
[361948357,1747905050118,-444.13353733,0.00032876,5]
[361948358,1747905050130,-420.0,0.00032876,5]
[361948359,1747905050141,-2987.28,0.00032876,5]
[361948360,1747905050152,-472.02,0.00032876,5]
[361948361,1747905050165,-420.0,0.00032876,5]
[361948362,1747905050176,-420.0,0.00032876,5]
[361948363,1747905050185,-420.0,0.00032876,5]
[361948364,1747905050194,-420.0,0.00032876,5]
[361948365,1747905050204,-420.0,0.00032876,5]
[361948367,1747905050214,-420.0,0.00032876,5]
[361948369,1747905050225,-500.0,0.00032876,5]
[361948371,1747905050234,-500.0,0.00032876,5]
[361948373,1747905050244,-420.0,0.00032876,5]
[361948375,1747905050255,-420.0,0.00032876,5]
[361948377,1747905050265,-500.0,0.00032876,5]
[361948379,1747905050275,-507.98431668,0.00032876,5]
[361948381,1747905050284,-420.0,0.00032876,5]
[361948383,1747905050293,-420.0,0.00032876,5]
[361948385,1747905050303,-722.62,0.00032876,5]
[361948387,1747905050313,-562.86,0.00032876,5]
[361948389,1747905050323,-942.23,0.00032876,5]
[361948391,1747905050332,-540.61,0.00032876,5]
[361948393,1747905050343,-420.0,0.00032876,5]
[361948395,1747905050352,-533.82,0.00032876,5]
[361948397,1747905050361,-420.0,0.00032876,5]
[361948399,1747905050371,-696.48,0.00032876,5]
[361948401,1747905050381,-1497.36,0.00032876,5]
[361948402,1747905050390,-760.26,0.00032876,5]
[361948405,1747905050401,-420.0,0.00032876,5]
[361948407,1747905050410,-715.16,0.00032876,5]
[361948409,1747905050420,-670.47,0.00032876,5]
[361948411,1747905050430,-1180.44,0.00032876,5]
[361948413,1747905050440,-420.0,0.00032876,5]
[361948415,1747905050449,-420.0,0.00032876,5]
[361948417,1747905050460,-420.0,0.00032876,5]
[361948419,1747905050470,-971.54,0.00032876,5]
[361948421,1747905050479,-420.0,0.00032876,5]
[361948423,1747905050489,-420.0,0.00032876,5]
[361948425,1747905050499,-420.0,0.00032876,5]
[361948427,1747905050508,-1104.24,0.00032876,5]
[361948429,1747905050517,-474.42,0.00032876,5]
[361948431,1747905050527,-420.0,0.00032876,5]
[361948433,1747905050536,-731.41,0.00032876,5]
[361948435,1747905050546,-724.07,0.00032876,5]
[361948436,1747905050555,-2000.0,0.00032876,5]
[361948438,1747905050565,-523.63,0.00032876,5]
[361948440,1747905050575,-1321.79,0.00032876,5]
[361948442,1747905050585,-424.45,0.00032876,5]
[361948444,1747905050597,-967.12,0.00032876,5]
[361948446,1747905050608,-420.0,0.00032876,5]
[361948448,1747905050619,-420.0,0.00032876,5]
[361948450,1747905050630,-938.96,0.00032876,5]
[361948452,1747905050642,-420.0,0.00032876,5]
[361948454,1747905050652,-420.0,0.00032876,5]
[361948456,1747905050661,-463.69,0.00032876,5]
[361948458,1747905050671,-420.0,0.00032876,5]
[361948460,1747905050681,-635.88,0.00032876,5]
[361948463,1747905050691,-420.0,0.00032876,5]
[361948464,1747905050701,-422.77,0.00032876,5]
[361948467,1747905050712,-681.87,0.00032876,5]
[361948469,1747905050721,-420.0,0.00032876,5]
[361948471,1747905050730,-420.0,0.00032876,5]
[361948473,1747905050739,-1229.57,0.00032876,5]
[361948474,1747905050749,-797.27,0.00032876,5]
[361948476,1747905050758,-1042.53,0.00032876,5]
[361948478,1747905050768,-420.0,0.00032876,5]
[361948480,1747905050777,-1222.48,0.00032876,5]
[361948483,1747905050788,-420.0,0.00032876,5]
[361948485,1747905050797,-420.0,0.00032876,5]
[361948487,1747905050808,-193.87865011,0.00032876,5]
[361948489,1747905050818,-420.0,0.00032876,5]
[361948491,1747905050828,-1350.17,0.00032876,5]
[361948493,1747905050837,-590.94,0.00032876,5]
[361948494,1747905050847,-971.37,0.00032876,5]
[361948496,1747905050856,-1004.44,0.00032876,5]
[361948499,1747905050866,-420.0,0.00032876,5]
[361948501,1747905050876,-613.76,0.00032876,5]
[361948502,1747905050884,-420.0,0.00032876,5]
[361948504,1747905050895,-420.0,0.00032876,5]
[361948506,1747905050904,-517.94,0.00032876,5]
[361948508,1747905050913,-420.0,0.00032876,5]
[361948510,1747905050923,-851.32,0.00032876,5]
[361948512,1747905050933,-993.2,0.00032876,5]
[361948514,1747905050943,-420.0,0.00032876,5]
[361948516,1747905050952,-420.0,0.00032876,5]
[361948518,1747905050962,-688.66,0.00032876,5]
[361948520,1747905050972,-664.94,0.00032876,5]
[361948522,1747905050982,-420.0,0.00032876,5]
[361948525,1747905050993,-420.0,0.00032876,5]
[361948527,1747905051002,-420.0,0.00032876,5]
[361948529,1747905051012,-420.0,0.00032876,5]
[361948531,1747905051021,-886.14,0.00032876,5]
[361948533,1747905051031,-570.22,0.00032876,5]
[361948535,1747905051040,-420.0,0.00032876,5]
[361948537,1747905051050,-425.61,0.00032876,5]
[361948539,1747905051058,-439.16,0.00032876,5]
[361948540,1747905051068,-420.0,0.00032876,5]
[361948543,1747905051077,-534.41,0.00032876,5]
[361948545,1747905051087,-1623.37,0.00032876,5]
[361948547,1747905051097,-592.140288,0.00032876,5]
[361948548,1747905051106,-445.86,0.00032876,5]
[361948550,1747905051116,-420.0,0.00032876,5]
[361948552,1747905051126,-420.0,0.00032876,5]
[361948554,1747905051136,-420.0,0.00032876,5]
[361948557,1747905051146,-420.0,0.00032876,5]
[361948558,1747905051156,-575.98,0.00032876,5]
[361948561,1747905051168,-420.0,0.00032876,5]
[361948563,1747905051178,-420.0,0.00032876,5]
[361948565,1747905051187,-420.0,0.00032876,5]
[361948567,1747905051196,-1275.53,0.00032876,5]
[361948569,1747905051208,-420.0,0.00032876,5]
[361948571,1747905051217,-420.0,0.00032876,5]
[361948572,1747905051226,-420.0,0.00032876,5]
[361948575,1747905051236,-420.0,0.00032876,5]
[361948576,1747905051245,-150.72002,0.00032876,5]
[361948577,1747905051254,-790.97,0.00032876,5]
[361948578,1747905051264,-539.09,0.00032876,5]
[361948579,1747905051273,-420.0,0.00032876,5]
[361948580,1747905051282,-420.0,0.00032876,5]
[361948581,1747905051292,-902.87,0.00032876,5]
[361948582,1747905051301,-420.0,0.00032876,5]
[361948583,1747905051311,-420.0,0.00032876,5]
[361948584,1747905051321,-456.33,0.00032876,5]
[361948585,1747905051330,-1739.34,0.00032876,5]
[361948586,1747905051341,-613.52,0.00032876,5]
[361948587,1747905051350,-420.0,0.00032876,5]
[361948588,1747905051360,-420.0,0.00032876,5]
[361948589,1747905051369,-420.0,0.00032876,5]
[361948590,1747905051379,-1905.41,0.00032876,5]
[361948591,1747905051388,-420.0,0.00032876,5]
[361948592,1747905051398,-420.0,0.00032876,5]
[361948593,1747905051408,-1219.42,0.00032876,5]
[361948594,1747905051418,-1040.97,0.00032876,5]
[361948595,1747905051427,-862.18,0.00032876,5]
[361948596,1747905051437,-458.18,0.00032876,5]
[361948597,1747905051447,-420.0,0.00032876,5]
[361948598,1747905051456,-420.0,0.00032876,5]
[361948599,1747905051466,-420.0,0.00032876,5]
[361948600,1747905051476,-420.0,0.00032876,5]
[361948601,1747905051486,-7585.68,0.00032876,5]
[361948602,1747905051495,-420.0,0.00032876,5]
[361948603,1747905051505,-467.35505987,0.00032876,5]
[361948604,1747905051515,-1265.28,0.00032876,5]
[361948605,1747905051523,-1035.51,0.00032876,5]
[361948606,1747905051533,-420.0,0.00032876,5]
[361948607,1747905051544,-1537.67,0.00032876,5]
[361948608,1747905051554,-420.0,0.00032876,5]
[361948609,1747905051565,-1034.3,0.00032876,5]
[361948610,1747905051574,-425.22,0.00032876,5]
[361948611,1747905051584,-326.762427,0.00032876,5]
[361948612,1747905051594,-420.0,0.00032876,5]
[361948613,1747905051603,-697.22,0.00032876,5]
[361948614,1747905051612,-3555.81,0.00032876,5]
[361948615,1747905051622,-420.0,0.00032876,5]
[361948616,1747905051632,-180.1286468,0.00032876,5]
[361948617,1747905051642,-420.0,0.00032876,5]
[361948618,1747905051651,-1769.84,0.00032876,5]
[361948619,1747905051661,-420.0,0.00032876,5]
[361948620,1747905051670,-1624.67,0.00032876,5]
[361948621,1747905051680,-420.0,0.00032876,5]
[361948622,1747905051690,-655.34,0.00032876,5]
[361948623,1747905051699,-420.0,0.00032876,5]
[361948624,1747905051709,-420.0,0.00032876,5]
[361948625,1747905051718,-520.87367803,0.00032876,5]
[361948626,1747905051727,-420.0,0.00032876,5]
[361948627,1747905051737,-272.19881637,0.00032876,5]
[361948628,1747905051746,-481.16,0.00032876,5]
[361948629,1747905051755,-505.26,0.00032876,5]
[361948630,1747905051765,-420.0,0.00032876,5]
[361948631,1747905051774,-420.0,0.00032876,5]
[361948632,1747905051783,-420.0,0.00032876,5]
[361948633,1747905051793,-420.0,0.00032876,5]
[361948634,1747905051803,-423.82,0.00032876,5]
[361948635,1747905051813,-1665.11,0.00032876,5]
[361948636,1747905051822,-420.0,0.00032876,5]
[361948637,1747905051832,-420.0,0.00032876,5]
[361948638,1747905051841,-504.76,0.00032876,5]
[361948639,1747905051851,-420.0,0.00032876,5]
[361948640,1747905051860,-431.73,0.00032876,5]
[361948641,1747905051870,-420.0,0.00032876,5]
[361948642,1747905051880,-493.69,0.00032876,5]
[361948643,1747905051890,-420.0,0.00032876,5]
[361948644,1747905051900,-1476.99,0.00032876,5]
[361948645,1747905051909,-420.0,0.00032876,5]
[361948646,1747905051919,-420.0,0.00032876,5]
[361948647,1747905051929,-420.0,0.00032876,5]
[361948648,1747905051938,-10089.09,0.00032876,5]
[361948649,1747905051947,-420.0,0.00032876,5]
[361948650,1747905051958,-538.92,0.00032876,5]
[361948651,1747905051967,-931.22,0.00032876,5]
[361948652,1747905051976,-500.14,0.00032876,5]
[361948653,1747905051986,-1594.93,0.00032876,5]
[361948654,1747905051996,-1571.56,0.00032876,5]
[361948655,1747905052006,-361.68224759,0.00032876,5]
[361948656,1747905052015,-1126.38,0.00032876,5]
[361948657,1747905052024,-834.43,0.00032876,5]
[361948658,1747905052033,-1617.09,0.00032876,5]
[361948659,1747905052043,-420.0,0.00032876,5]
[361948660,1747905052052,-420.0,0.00032876,5]
[361948661,1747905052062,-445.34,0.00032876,5]
[361948662,1747905052071,-3487.75,0.00032876,5]
[361948663,1747905052081,-420.0,0.00032876,5]
[361948664,1747905052091,-540.0,0.00032876,5]
[361948665,1747905052100,-535.32,0.00032876,5]
[361948666,1747905052111,-420.0,0.00032876,5]
[361948667,1747905052121,-463.92,0.00032876,5]
[361948668,1747905052130,-420.0,0.00032876,5]
[361948669,1747905052140,-422.69858825,0.00032876,5]
[361948670,1747905052150,-420.0,0.00032876,5]
[361948671,1747905052160,-1378.21,0.00032876,5]
[361948672,1747905052173,-1096.04,0.00032876,5]
[361948673,1747905052191,-987.66,0.00032876,5]
[361948674,1747905052201,-667.97,0.00032876,5]
[361948675,1747905052210,-11326.17,0.00032876,5]
[361948676,1747905052220,-420.0,0.00032876,5]
[361948677,1747905052229,-420.0,0.00032876,5]
[361948678,1747905052239,-420.0,0.00032876,5]
[361948679,1747905052249,-465.89,0.00032876,5]
[361948681,1747905052258,-837.4,0.00032876,5]
[361948683,1747905052267,-420.0,0.00032876,5]
[361948685,1747905052276,-420.0,0.00032876,5]
[361948687,1747905052285,-932.34,0.00032876,5]
[361948689,1747905052295,-420.0,0.00032876,5]
[361948691,1747905052304,-420.0,0.00032876,5]
[361948693,1747905052314,-1084.88,0.00032876,5]
[361948695,1747905052323,-420.0,0.00032876,5]
[361948697,1747905052332,-1817.9,0.00032876,5]
[361948698,1747905052341,-596.42,0.00032876,5]
[361948700,1747905052351,-3530.84,0.00032876,5]
[361948702,1747905052360,-1535.21,0.00032876,5]
[361948704,1747905052370,-420.0,0.00032876,5]
[361948706,1747905052380,-923.21,0.00032876,5]
[361948708,1747905052389,-1673.56,0.00032876,5]
[361948710,1747905052399,-420.0,0.00032876,5]
[361948712,1747905052408,-420.0,0.00032876,5]
[361948714,1747905052417,-420.0,0.00032876,5]
[361948716,1747905052426,-425.36,0.00032876,5]
[361948718,1747905052435,-657.77,0.00032876,5]
[361948720,1747905052445,-420.0,0.00032876,5]
[361948722,1747905052454,-420.0,0.00032876,5]
[361948735,1747905052567,-543.61,0.00032876,5]
[361948737,1747905052576,-3570.84,0.00032876,5]
[361948739,1747905052586,-420.0,0.00032876,5]
[361948741,1747905052595,-2311.4,0.00032876,5]
[361948743,1747905052604,-278.87051242,0.00032876,5]
[361948745,1747905052613,-420.0,0.00032876,5]
[361948747,1747905052622,-420.0,0.00032876,5]
[361948749,1747905052631,-420.0,0.00032876,5]
[361948751,1747905052640,-420.0,0.00032876,5]
[361948753,1747905052650,-420.0,0.00032876,5]
[361948755,1747905052660,-839.53,0.00032876,5]
[361948757,1747905052670,-1117.72,0.00032876,5]
[361948759,1747905052679,-702.21,0.00032876,5]
[361948761,1747905052688,-500.0,0.00032876,2]
[361948763,1747905052697,-6776.98,0.00032876,5]
[361948765,1747905052707,-861.9,0.00032876,5]
[361948767,1747905052716,-420.0,0.00032876,5]
[361948769,1747905052725,-420.0,0.00032876,5]
[361948771,1747905052735,-420.0,0.00032876,5]
[361948773,1747905052744,-1149.58,0.00032876,5]
[361948775,1747905052754,-1094.87,0.00032876,5]
[361948777,1747905052763,-420.0,0.00032876,5]
[361948779,1747905052772,-420.0,0.00032876,5]
[361948781,1747905052782,-420.0,0.00032876,5]
[361948783,1747905052791,-29870.84,0.00032876,5]
[361948785,1747905052801,-7627.03,0.00032876,5]
[361948786,1747905052810,-2140.64,0.00032876,5]
[361948788,1747905052820,-420.0,0.00032876,5]
[361948790,1747905052830,-420.0,0.00032876,5]
[361948792,1747905052840,-509.45,0.00032876,5]
[361948794,1747905052849,-632.14,0.00032876,5]
[361948796,1747905052859,-420.0,0.00032876,5]
[361948798,1747905052868,-420.0,0.00032876,5]
[361948800,1747905052877,-420.0,0.00032876,5]
[361948802,1747905052887,-2116.15,0.00032876,5]
[361948804,1747905052897,-849.87,0.00032876,5]
[361948806,1747905052907,-630.86,0.00032876,5]
[361948809,1747905052918,-539.98,0.00032876,5]
[361948810,1747905052927,-420.0,0.00032876,5]
[361948812,1747905052936,-420.0,0.00032876,5]
[361948814,1747905052946,-420.0,0.00032876,5]
[361948816,1747905052955,-1011.56,0.00032876,5]
[361948818,1747905052964,-917.52,0.00032876,5]
[361948820,1747905052973,-420.0,0.00032876,5]
[361948822,1747905052982,-472.81,0.00032876,5]
[361948824,1747905052991,-420.0,0.00032876,5]
[361948826,1747905053000,-1108.32,0.00032876,5]
[361948828,1747905053010,-930.08,0.00032876,5]
[361948830,1747905053019,-420.0,0.00032876,5]
[361948832,1747905053029,-826.62,0.00032876,5]
[361948834,1747905053038,-420.0,0.00032876,5]
[361948836,1747905053047,-553.18,0.00032876,5]
[361948838,1747905053057,-548.96,0.00032876,5]
[361948840,1747905053066,-1546.55,0.00032876,5]
[361948842,1747905053076,-801.06,0.00032876,5]
[361948844,1747905053085,-420.0,0.00032876,5]
[361948846,1747905053093,-420.0,0.00032876,5]
[361948848,1747905053103,-1496.4,0.00032876,5]
[361948850,1747905053113,-420.0,0.00032876,5]
[361948852,1747905053122,-721.64,0.00032876,5]
[361948854,1747905053131,-521.58,0.00032876,5]
[361948856,1747905053141,-420.0,0.00032876,5]
[361948858,1747905053150,-688.22,0.00032876,5]
[361948860,1747905053159,-914.59,0.00032876,5]
[361948862,1747905053174,-420.0,0.00032876,5]
[361948864,1747905053183,-1457.48,0.00032876,5]
[361948866,1747905053193,-420.0,0.00032876,5]
[361948868,1747905053202,-420.0,0.00032876,5]
[361948870,1747905053213,-420.0,0.00032876,5]
[361948872,1747905053223,-420.0,0.00032876,5]
[361948874,1747905053232,-922.21,0.00032876,5]
[361948876,1747905053241,-577.71,0.00032876,5]
[361948878,1747905053251,-420.0,0.00032876,5]
[361948880,1747905053260,-420.0,0.00032876,5]
[361948882,1747905053270,-686.41,0.00032876,5]
[361948884,1747905053279,-1670.07,0.00032876,5]
[361948886,1747905053289,-352.45790553,0.00032876,5]
[361948888,1747905053299,-420.0,0.00032876,5]
[361948890,1747905053308,-420.0,0.00032876,5]
[361948892,1747905053318,-1066.05,0.00032876,5]
[361948894,1747905053327,-420.0,0.00032876,5]
[361948896,1747905053336,-759.63,0.00032876,5]
[361948898,1747905053346,-420.0,0.00032876,5]
[361948900,1747905053355,-1464.1,0.00032876,5]
[361948902,1747905053364,-420.0,0.00032876,5]
[361948904,1747905053374,-420.0,0.00032876,5]
[361948906,1747905053384,-420.0,0.00032876,5]
[361948908,1747905053393,-1387.73,0.00032876,5]
[361948910,1747905053402,-420.0,0.00032876,5]
[361948912,1747905053412,-420.0,0.00032876,5]
[361948914,1747905053421,-420.0,0.00032876,5]
[361948916,1747905053431,-847.38,0.00032876,5]
[361948918,1747905053441,-920.71,0.00032876,5]
[361948920,1747905053450,-420.0,0.00032876,5]
[361948922,1747905053460,-571.13,0.00032876,5]
[361948924,1747905053470,-435.7513147,0.00032876,5]
[361948926,1747905053480,-500.0,0.00032876,5]
[361948928,1747905053489,-1323.69,0.00032876,5]
[361948930,1747905053498,-720.23,0.00032876,5]
[361948932,1747905053507,-420.0,0.00032876,5]
[361948934,1747905053516,-420.0,0.00032876,5]
[361948936,1747905053526,-420.0,0.00032876,5]
[361948938,1747905053535,-1034.29,0.00032876,5]
[361948940,1747905053545,-420.0,0.00032876,5]
[361948941,1747905053554,-329.70774205,0.00032876,5]
[361948942,1747905053566,-420.0,0.00032876,5]
[361948943,1747905053575,-739.3,0.00032876,5]
[361948944,1747905053584,-420.0,0.00032876,5]
[361948945,1747905053594,-595.4,0.00032876,5]
[361948946,1747905053603,-1528.72854201,0.00032876,5]
[361948961,1747905054187,-1204.68145799,0.00032876,5]
[361948962,1747905054197,-134.90381831,0.00032876,5]
[361948963,1747905054325,-285.09618169,0.00032876,5]
[361948964,1747905054335,-1235.29,0.00032876,5]
[361948965,1747905054345,-1284.15,0.00032876,5]
[361948966,1747905054354,-1659.56,0.00032876,5]
[361948967,1747905054363,-863.42,0.00032876,5]
[361948968,1747905054373,-2600.37,0.00032876,3]
[361948969,1747905054382,-420.0,0.00032876,5]
[361948970,1747905054391,-420.0,0.00032876,5]
[361948971,1747905054400,-420.0,0.00032876,5]
[361948972,1747905054409,-1654.42,0.00032876,5]
[361948973,1747905054418,-65.81210691,0.00032876,5]
[361948974,1747905054872,-301.9431694,0.00032876,5]
[361948975,1747905054883,-59.12472369,0.00032876,5]
[361948976,1747905054893,-1045.57527631,0.00032876,5]
[361948977,1747905055008,-539.14825921,0.00032876,5]
[361948978,1747905055019,-23.57646448,0.00032876,5]
[361948979,1747905055030,-420.0,0.00032876,5]
[361948980,1747905055038,-420.0,0.00032876,5]
[361948981,1747905055048,-552.38,0.00032876,5]
[361948982,1747905055058,-420.0,0.00032876,5]
[361948983,1747905055066,-559.68590715,0.00032876,5]
[361948984,1747905055076,-420.0,0.00032876,5]
[361948985,1747905055085,-441.06,0.00032876,5]
[361948986,1747905055095,-526.93,0.00032876,5]
[361948987,1747905055104,-420.0,0.00032876,5]
[361948988,1747905055113,-420.0,0.00032876,5]
[361948989,1747905055123,-1253.47,0.00032876,5]
[361948990,1747905055132,-527.87,0.00032876,5]
[361948991,1747905055141,-87.94747208,0.00032876,5]
[361948992,1747905055225,-628.26252792,0.00032876,5]
[361948993,1747905055235,-420.0,0.00032876,5]
[361948994,1747905055246,-1357.87,0.00032876,5]
[361948995,1747905055256,-1113.8,0.00032876,5]
[361948996,1747905055265,-544.86,0.00032876,5]
[361948997,1747905055274,-420.0,0.00032876,5]
[361948998,1747905055284,-420.0,0.00032876,5]
[361948999,1747905055293,-420.0,0.00032876,5]
[361949000,1747905055303,-515.09,0.00032876,5]
[361949001,1747905055312,-0.47367127,0.00032876,5]
[361949002,1747905055324,-419.52632873,0.00032876,5]